Cogmind - Beta 15 @@@ ROGUE MODE // 2025.10.20 @ 20:38:24 Player: Lazz Result: Destroyed by as-88905 with Assembled Blade Performance ------------- Evolutions (0) 0 Regions Visited (2) 400 Robots Destroyed (24) 120 Value Destroyed (564) 564 Prototype IDs (3) 60 Alien Tech Used (0) 0 Bonus (0) 0 TOTAL SCORE: 1144 Bonus ------- None Cogmind --------- Core Integrity 0/250 Matter 267/300 Energy 100/100 System Corruption 2% Temperature Cool (11) Movement Walking (120) Location -10/Mines Parts ------- > --- POWER (1) -------- (None) > --- PROPULSION (2) --- Aluminum Leg Aluminum Leg > --- UTILITY (2) ------ Medium Storage Unit > --- WEAPON (2) ------- Assault Rifle Mining Claw > --- INVENTORY (10) --- Light Ion Engine Aluminum Leg Aluminum Leg Aluminum Leg Aluminum Leg Large Storage Unit EM Pulse Gun Particle Gun Peak State ------------ > --- POWER ------------ Ion Engine > --- PROPULSION ------- Light Treads Light Treads > --- UTILITY ---------- Small Storage Unit Structural Scanner > --- WEAPON ----------- EM Pulse Gun Assault Rifle > --- INVENTORY -------- Light Ion Engine Light Ion Engine Light Nuclear Core Aluminum Leg Aluminum Leg Aluminum Leg Assault Rifle Datajack [Rating: 8] Favorites ----------- Power Ion Engine Engine Ion Engine Propulsion Aluminum Leg Treads Light Treads Leg Aluminum Leg Utility Medium Storage Unit Device Structural Scanner Storage Medium Storage Unit Weapon Assault Rifle Energy Gun EM Pulse Gun Ballistic Gun Assault Rifle Slashing Weapon Mining Claw Special Melee Weapon Datajack Build | -11 -10 -10 ------- Run | Yrd Mat Min Slots Evolved . | . . . Power . | . . . Propulsion . | . . . Utility . | . . . Weapon . | . . . Parts Attached 19 | 6 11 2 Power 2 | 1 1 . Engine 2 | 1 1 . Core . | . . . Reactor . | . . . Propulsion 8 | 2 5 1 Treads 2 | 2 . . Leg 6 | . 5 1 Wheel . | . . . Hover . | . . . Flight . | . . . Utility 4 | 1 2 1 Device 1 | . 1 . Storage 3 | 1 1 1 Processor . | . . . Hackware . | . . . Protection . | . . . Artifact . | . . . Weapon 5 | 2 3 . Energy Gun 1 | 1 . . Energy Cannon . | . . . Ballistic Gun 2 | 1 1 . Ballistic Cannon . | . . . Launcher . | . . . Special Weapon . | . . . Impact Weapon . | . . . Slashing Weapon 1 | . 1 . Piercing Weapon . | . . . Special Melee Weapon 1 | . 1 . Unidentified Prototypes . | . . . Parts Lost 5 | . 2 3 Power 2 | . 1 1 Propulsion 2 | . 1 1 Utility . | . . . Weapon 1 | . . 1 Highest Loss Streak 3 | . 2 3 To Critical Strikes . | . . . Average Backups 6 | 3 7 8 Power 1 | . 2 1 Propulsion 2 | 1 2 4 Utility . | . . 1 Weapon 1 | 1 1 2 Tool/Special . | . . . Unused Backups 6 | . 1 5 Power 2 | . 1 1 Propulsion 3 | . . 3 Utility . | . . . Weapon 1 | . . 1 Tool/Special . | . . . Average Slot Usage (%) 90 | . 93 71 Engine 11 | . 12 4 Treads 4 | . 4 . Leg 23 | . 22 27 Device 8 | . 10 . Storage 14 | . 14 14 Energy Gun 5 | . 6 . Ballistic Gun 12 | . 12 7 Slashing Weapon 8 | . 7 14 Special Melee Weapon 1 | . 1 2 Peak Build Rating 8 | 6 8 6 Average Rating 6 | 5 6 5 On Entrance 4 | . 6 6 Naked Turns . | . . . Heaviest Build 20 | 14 20 16 Greatest Support 40 | 40 40 20 Greatest Overweight (x) 1 | 1 1 . Average Overweight (x) . | . . . Largest Inventory Capacity 15 | 8 10 15 Average Capacity 9 | 7 9 10 Most Carried 10 | 7 10 9 Average Carried 6 | 3 7 8 Final Capacity 10 | 8 10 10 Final Carried 9 | 4 9 8 Class Distribution -------------------- 100% | Mutant Dominant Class ---------------- Mutant | -10/Materials Mutant | -10/Mines Resources | -11 -10 -10 ----------- Run | Yrd Mat Min Matter Collected 541 | 214 317 10 Remotely . | . . . Salvage Created 801 | . 741 60 Parts 58 | . 56 2 Haulers Intercepted . | . . . Recyclers Shooed . | . . . Parts Field Recycled . | . . . Retrieved Matter . | . . . Parts Self-Destructed . | . . . Prevented . | . . . Kills | -11 -10 -10 ------- Run | Yrd Mat Min Combat Hostiles Destroyed 18 | . 17 1 Melee 7 | . 6 1 Guns 9 | . 9 . AOE 2 | . 2 . Classes Destroyed 7 | . 7 . Worker 1 | . 1 . Builder 1 | . 1 . Recycler 1 | . 1 . Operator 1 | . 1 . Watcher 2 | . 2 . Swarmer 6 | . 6 . Grunt 12 | . 11 1 Best Kill Streak 6 | . 6 1 Combat Bots Only 6 | . 6 1 Max Kills in Single Turn 2 | . 2 1 Gunslinging 1 | . 1 . Exploded 1 | . 1 . Melee 1 | . 1 1 Uniques/NPCs Destroyed . | . . . Combat | -11 -10 -10 -------- Run | Yrd Mat Min Hostile Shots Fired 127 | . 109 18 Missed 36 | . 32 4 Hits 91 | . 77 14 Melee 2 | . . 2 Projectile 89 | . 77 12 Damage Taken 1082 | . 840 242 Core 271 | . 204 67 Absorbed by Shields . | . . . Regen/Repaired (Parts) 31 | . 31 . Core Remaining (%) 100 | 100 . . Volleys Fired 41 | . 40 1 Largest 2 | . 2 1 Hottest 60 | . 60 20 Shots Fired 67 | . 66 1 Gun 67 | . 66 1 Cannon . | . . . Launcher . | . . . Special . | . . . Kinetic 42 | . 41 1 Thermal . | . . . Explosive . | . . . Electromagnetic 25 | . 25 . Robot Hit Streak 9 | . 9 2 Robot Miss Streak 3 | . 3 . Penetration Max . | . . . Secondary Targets 2 | . 2 . Max Gunslinging Chain 1 | . 1 . Shots Hit Robots 63 | . 57 6 Core Hits 27 | . 25 2 Critical Kills 1 | . 1 . Critical Parts Destroyed . | . . . Critical Strikes 1 | . 1 . Destroy 1 | . 1 . Melee Attacks 42 | . 30 12 Impact . | . . . Slashing 35 | . 25 10 Piercing . | . . . Sneak Attacks 5 | . 5 . Combat Hostiles . | . . . Follow-up Attacks . | . . . Damage Inflicted 1078 | . 966 112 Guns 523 | . 509 14 Cannons . | . . . Explosions 152 | . 152 . Melee 400 | . 302 98 Ramming 3 | . 3 . Kinetic 302 | . 288 14 Thermal 152 | . 152 . Explosive . | . . . Electromagnetic 221 | . 221 . Impact . | . . . Slashing 400 | . 302 98 Piercing . | . . . Highest Corruption 2 | . 2 2 Average Corruption 1 | . 1 2 Corruption Purged . | . . . Corruption Blocked . | . . . Effects 12 | . 11 1 Message Errors 5 | . 5 . Matter Fused 2 | . 2 . Heat Flow Errors 2 | . 1 1 Energy Discharges 1 | . 1 . Parts Rejected 1 | . 1 . Misfires 1 | . 1 . Overload Shots . | . . . Overflow Damage 29 | . 29 . Projectiles . | . . . Explosions 13 | . 13 . Melee 16 | . 16 . Knockbacks . | . . . Impact . | . . . Kinetic . | . . . Secondary . | . . . Self-Inflicted Damage . | . . . Shots . | . . . Rammed . | . . . Targets Rammed 2 | . 2 . Kicked 2 | . 2 . Crushed . | . . . Highest Temperature 206 | . 120 206 Average Temperature 53 | . 40 106 Received Heat Transfer 504 | . 399 105 Effects 1 | . . 1 Energy Bleed 1 | . . 1 Siege Activations . | . . . Martial Activations . | . . . Shielding Activations . | . . . Robots Disrupted . | . . . Combat Hostiles . | . . . Robots Corrupted . | . . . Combat Hostiles . | . . . Parts Fried . | . . . Impact Corruptions . | . . . Robots Melted . | . . . Combat Hostiles . | . . . Parts Melted . | . . . Heat Transferred 200 | . 200 . Parts Sabotaged . | . . . Parts Stolen . | . . . Parts Stripped . | . . . Power Chain Reactions 3 | . 3 . Alert | -11 -10 -10 ------- Run | Yrd Mat Min Maximum Alert Level 1 | . 1 . Low Security (%) 99 | 100 99 100 Level 1 . | . . . Level 2 . | . . . Level 3 . | . . . Level 4 . | . . . Level 5 . | . . . High Security . | . . . Max Security . | . . . Peak Influence 205 | . 205 52 Initial 52 | . . 52 Average 38 | . 58 21 Influence Increases 618 | . 573 45 Destroy 0b10 Robot/C 360 | . 340 20 Destroy 0b10 Robot/NC 30 | . 30 . Destroy Leader 84 | . 74 10 Successful Hack 21 | . 21 . Disable Machine 15 | . 15 . Destroy Structure 3 | . 3 . Lose Combat Pursuer 105 | . 90 15 Influence Decreases 618 | . 439 179 Entered New Map 82 | . . 82 Time Decay 486 | . 419 67 Lost Part 50 | . 20 30 Squads Dispatched 7 | . 7 . Investigation 4 | . 4 . Extermination . | . . . Reinforcement 3 | . 3 . Assault . | . . . Garrison . | . . . Intercept . | . . . Searches Triggered . | . . . Construction Impeded . | . . . Haulers Reinforced . | . . . Active Scanning Responses . | . . . Cargo Convoy Interrupts . | . . . Stealth | -11 -10 -10 --------- Run | Yrd Mat Min Distress Signals 1 | . 1 . Communications Jammed . | . . . Distress Signals . | . . . Times Spotted 34 | . 31 3 Peak Tracking Total 4 | . 4 2 Tactical Retreats 5 | . 4 1 Traps | -11 -10 -10 ------- Run | Yrd Mat Min Traps Triggered 5 | . 5 . Indirectly . | . . . Trap Hack Attempts . | . . . Triggered . | . . . Disarmed 3 | . 3 . Reprogrammed . | . . . Reused . | . . . Traps Extracted . | . . . Installed . | . . . Triggered . | . . . Machines | -11 -10 -10 ---------- Run | Yrd Mat Min Machines Disabled 1 | . 1 . Max in Single Turn 1 | . 1 . Machines Repaired . | . . . Machines Dismantled . | . . . Machines Sabotaged . | . . . Overloaded Fab Kills . | . . . Hacking | -11 -10 -10 --------- Run | Yrd Mat Min Machines Accessed 7 | . 7 . Terminals 5 | . 5 . Fabricators . | . . . Repair Stations 1 | . 1 . Recycling Units 1 | . 1 . Scanalyzers . | . . . Garrison Access . | . . . Total Hacks 26 | . 26 . Successful 16 | . 16 . Failed 10 | . 10 . Catastrophic 1 | . 1 . Database Lockouts . | . . . Manual 1 | . 1 . Terminals 19 | . 19 . Fabricators . | . . . Repair Stations 2 | . 2 . Recycling Units 5 | . 5 . Scanalyzers . | . . . Garrison Access . | . . . Terminal Hacks 9 | . 9 . Record 2 | . 2 . Prototype ID Bank 2 | . 2 . Branch Access Points 1 | . 1 . Disarm Traps 1 | . 1 . Dispatch Records 1 | . 1 . Maintenance Status 2 | . 2 . Fabricator Hacks . | . . . Repair Station Hacks 2 | . 2 . Scan Component 1 | . 1 . Repair 1 | . 1 . Recycling Unit Hacks 5 | . 5 . Recycle Component 1 | . 1 . Process 1 | . 1 . Report Inventory 2 | . 2 . Retrieve Components 1 | . 1 . Scanalyzer . | . . . Garrison Access Hacks . | . . . Unauthorized Hacks . | . . . Terminals . | . . . Fabricators . | . . . Repair Stations . | . . . Recycling Units . | . . . Scanalyzers . | . . . Garrison Access . | . . . Data Cores Recovered 1 | . 1 . Used . | . . . Hacking Detections 5 | . 5 . Full Trace Events 5 | . 5 . Feedback Events 1 | . 1 . Corruption 1 | . 1 . Feedback Blocked . | . . . Robot Schematics Acquired . | . . . Robots Built . | . . . Authchips . | . . . Time . | . . . Total Robot Build Rating . | . . . Part Schematics Acquired . | . . . Parts Built . | . . . Authchips . | . . . Time . | . . . Total Part Build Rating . | . . . Parts Repaired 1 | . 1 . Time 26 | . 26 . Parts Recycled 1 | . 1 . Recycled Matter 10 | . 10 . Retrieved Matter . | . . . Retrieved Components . | . . . Parts Scanalyzed . | . . . Part Schematics Acquired . | . . . Parts Damaged . | . . . Bothacking | -11 -10 -10 ------------ Run | Yrd Mat Min Used RIF Installer . | . . . Robots Hacked 2 | . 2 . Non-combat 1 | . 1 . Combat 1 | . 1 . Robot Hacks Applied 4 | . 4 . parse_system 2 | . 2 . no_distress 1 | . 1 . check_alert 1 | . 1 . Relay Couplers Released . | . . . Fabnet Peak Effective % . | . . . Robots Rewired . | . . . Allies Hacked . | . . . Hacks Repelled . | . . . Allies | -11 -10 -10 -------- Run | Yrd Mat Min Total Allies . | . . . Largest Group . | . . . Highest-Rated Group . | . . . Highest-Rated Ally . | . . . Total Orders . | . . . Ally Attacks . | . . . Total Damage . | . . . Kills . | . . . Allies Corrupted . | . . . Allies Melted . | . . . Intel | -11 -10 -10 ------- Run | Yrd Mat Min Active Infowar (turns) 1113 | . 1113 . Structural 1113 | . 1113 . Robot Analysis Total . | . . . Derelict Logs Recovered . | . . . Drone Launches . | . . . Drone Recoveries . | . . . Exploration | -11 -10 -10 ------------- Run | Yrd Mat Min Turns Passed 2432 | 702 1540 190 Spaces Moved 1402 | 261 1019 122 Core 12 | 12 . . Treads 374 | 249 125 . Legs 1016 | . 894 122 Wheels . | . . . Hover . | . . . Flight . | . . . Fastest Speed 50 | 50 120 120 Average Speed 130 | 156 125 120 Slowest Speed 190 | 160 190 120 Overloaded Moves . | . . . Propulsion Burnouts . | . . . Robots Hopped . | . . . Potential Cave-ins . | . . . Cave-ins Triggered . | . . . Exploration Rate (%) 51 | 28 98 29 Regions Visited 2 Branch Regions 1 Pre-discovered Areas . | . . . Known Exits Taken 1 | . 1 . Unknown Exits Taken 1 | 1 . . Scrap Searched . | . . . Spaces Dug . | . . . Terrain Destroyed 3 | . 3 . Melee . | . . . Projectile . | . . . AOE 3 | . 3 . Terrain Rammed . | . . . Walls Destroyed . | . . . Machines Disabled . | . . . Actions | -11 -10 -10 --------- Run | Yrd Mat Min Total 1860 | 554 1163 143 Wait 315 | 278 34 3 Move 1400 | 260 1018 122 Hop . | . . . Pick Up 30 | 10 19 1 Fast Attach . | . . . Attach 18 | 6 10 2 Detach . | . . . Swap 8 | . 6 2 Drop 4 | . 4 . Fire 41 | . 40 1 Melee 42 | . 30 12 Ram . | . . . Kick 2 | . 2 . Crush . | . . . Escape Stasis . | . . . Rewire . | . . . Trap . | . . . Miscellaneous . | . . . Route ------- -11/Scrapyard -10/Materials (discovered 5 exits: [*Mat x3] / *Min / [*Sub]) -10/Mines History --------- Turn | Location | Event 10 | -11/Scrapyard | Discovered new exit (range 16) 703 | -11/Scrapyard | Entered Materials 704 | -10/Materials | Build established: Mutant 1122 | -10/Materials | Discovered new exit (range 16) 1303 | -10/Materials | Repaired Assault Rifle 1336 | -10/Materials | Discovered new exit (range 16) 1512 | -10/Materials | Discovered new exit (range 12) 1684 | -10/Materials | Discovered new exit (range 15) 1869 | -10/Materials | Discovered new exit (range 11) 1924 | -10/Materials | Core integrity fell below 50% 1988 | -10/Materials | Identified exit to Mines 2023 | -10/Materials | Core integrity fell below 20% 2243 | -10/Materials | Entered Mines 2323 | -10/Mines | Lost 3 parts (1p1n1w) 2429 | -10/Mines | Excavation squad dispatched 2429 | -10/Mines | A large section of the Mines collapsed 2433 | -10/Mines | Destroyed by as-88905 with Assembled Blade Last Messages --------------- Command string: 9w7p No effect. Datajack destroyed. Aluminum Leg destroyed. Lgt. Ion Engine destroyed. G-47 Trooper destroyed. Acquired Particle Gun. Acquired 10 matter. K-01 Serf collects debris. System corrupted: Heat flow error (+229). Overheating: Energy bleed (-22). K-01 Serf crushed by falling debris. K-01 Serf system corrupted by crushing effect. K-01 Serf destroyed. ALERT: Suspicious cave-in, suspected derelict activity in mines. Dispatching escorted excavation squad. Press '.', 'keypad 5' or scroll the mouse wheel to wait a turn. Map ----- +----------------------------------------------------+ | ?????????????????????????????????????????????????? | | ?????????????????????????????????????????????????? | | ??????????????????????????????????#####??????????? | | ?????????????????????????????????## ###???????? | | ?????????????????????????????????# ##??????? | | ?????????????????????????????????# """ #??????? | | ?????????????????????????????????# """ ######## | | ????????????????????????????????# """ | | ???????????????????????????????? """ #########% | | ???????????????????????????????? ##???????#! | | ???????????????????????????????## #?????????# | | ?????????????????????????##?????### #?########## | | ????????????????????? ?## ###????## #?# | | ????????????????????# ## ##????# #?# | | ????????????????????? # #????# #?# | | ????????????????????? ????# #?# """ """ | | ?????????????????????? ????## ### """ """ | | ?????????????????????? ????# """ """ | | ??????????????????????# ?????# ### """ """ | | ?????????????????????## ?????# #?# | | ?????????????????????# #??#### #?# | | ?????????????????????# #??# #?########### | | ????????????????????## # ##?# #####???????? | | ?????????? ###### ##; ### ##### ###?????? | | ?????????? #a# ## #???# ##????? | | ?????????? #@# ##??## ##???? | | ?????????????????#### ###;# ##### ##??? | | ?????????????????????????### ## ##?? | | ??????????????????????????# #?? | | ??????????????????????????## ### #?? | | ???????????????????????????# ##?## ##?? | | ??????????????????????????# #???## ##??? | | ??????????????????????????# ##????## #???? | | ??????????????????????????#####??????# #???? | | ?????????????????????????????????????# ## #???? | | ?????????????????????????????????????# ## ##??? | | ?????????????????????????????????????## ##?? | | ??????????????????????????????????????# ### ##? | | ??????????????????????????????????????###?## #? | | ??????????????????????????????????????????## #? | | ?????????????????????????????????????????## ##? | | ?????????????????????????????????????????# ###?? | | ????????????????????????????????????????## ##???? | | ????????????????????????????????????????# #????? | | ???????????????????????????????????????## ##????? | | ??????????????????????????????????????## #?????? | | ??????????????????????????????????????# #?????? | | ??????????????????????????????????????# #?????? | | ??????????????????????????????????????## ##?????? | | ???????????????????????????????????????####??????? | +----------------------------------------------------+ Best States ------------- Heat Dissipation 25 Energy Generation 10 Energy Capacity 250 Matter Stores 300 Matter Capacity 300 Sight Range 16 Terrain Scan Density 10 Evasion (%) 55 Recoil Reduction 2 Item Schematics ----------------- None Robot Schematics ------------------ None Fabricated ------------ Nothing Repaired ---------- Assault Rifle | 69% | -10/Materials Alien Tech Used ----------------- None Achievements -------------- None Challenges ------------ None Game ------ Seed CooledWarlordPower Manual? 0 Play Time 00:30:00 Cumulative 9.9 hours Start 2025.10.20 @ 18:51:30 End 2025.10.20 @ 20:38:24 Sessions 3 Manual Loads 0 Difficulty Rogue Special Mode None Game No. 13 Rogue 13 Adventurer 0 Explorer 0 Win Type - Total 0 Types 0/0/0/0/0/0/0/0/0/0 Lore% 8 Gallery% 13 Achievement% 14 Wizard Run 0 Options --------- Layout 2 ASCII 0 Keyboard 0 Movement Mouse Keybinds 0 Fullscreen 1 Font 16/SmallcapsGlow Map View 25x24 Zoom Use 99% Tactical HUD 0 Map Filters NONE Filters NONE Steam SD RUN: a5f7b685-ac78-46a9-aa16-64e8283f4dd6